[Event "Early-Titled-Tuesday-Blitz-September-05-2023"]
[Site "Chess.com"]
[Date "2023.09.05"]
[Round "8"]
[White "aghasiyevkamal"]
[Black "jk13"]
[Result "0-1"]
[WhiteElo "2530"]
[BlackElo "2678"]
[TimeControl "180+1"]
[EndTime "9:26:10 PDT"]
[Termination "jk13 won by resignation"]

1. d4 {[%clk 0:02:56.1]} 1... Nf6 {[%clk 0:03:00.1]} 2. c4 {[%clk 0:02:55.6]}
2... e6 {[%clk 0:03:00.7]} 3. Nf3 {[%clk 0:02:53.9]} 3... Bb4+ {[%clk
0:03:01.3]} 4. Bd2 {[%clk 0:02:52.9]} 4... Bxd2+ {[%clk 0:03:01]} 5. Qxd2 {[%clk
0:02:51.9]} 5... O-O {[%clk 0:03:01.9]} 6. Nc3 {[%clk 0:02:51.6]} 6... d5 {[%clk
0:03:02.8]} 7. e3 {[%clk 0:02:50.6]} 7... Qe7 {[%clk 0:03:03.4]} 8. Be2 {[%clk
0:02:47.6]} 8... dxc4 {[%clk 0:03:02.9]} 9. O-O {[%clk 0:02:45.5]} 9... Rd8
{[%clk 0:03:00.4]} 10. Bxc4 {[%clk 0:02:45.2]} 10... c5 {[%clk 0:02:58.5]} 11.
Rfe1 {[%clk 0:02:43.6]} 11... Nc6 {[%clk 0:02:57.9]} 12. Rad1 {[%clk 0:02:42.8]}
12... b6 {[%clk 0:02:54]} 13. Qc2 {[%clk 0:02:38.7]} 13... Bb7 {[%clk
0:02:01.1]} 14. a3 {[%clk 0:02:26.7]} 14... cxd4 {[%clk 0:01:50.4]} 15. exd4
{[%clk 0:02:26.1]} 15... Qc7 {[%clk 0:01:49.8]} 16. Ba2 {[%clk 0:02:15.1]} 16...
Ne7 {[%clk 0:01:39.1]} 17. Ne5 {[%clk 0:02:11.4]} 17... Ned5 {[%clk 0:01:28.8]}
18. Bb1 {[%clk 0:02:09]} 18... Rac8 {[%clk 0:01:26.2]} 19. Rd3 {[%clk
0:01:19.3]} 19... Nf4 {[%clk 0:01:24.8]} 20. Rg3 {[%clk 0:01:07.1]} 20... Rxd4
{[%clk 0:01:21.2]} 21. Qc1 {[%clk 0:00:32.2]} 21... Ng6 {[%clk 0:00:57.7]} 22.
Nxg6 {[%clk 0:00:29]} 22... hxg6 {[%clk 0:00:56.7]} 23. Qe3 {[%clk 0:00:29.9]}
23... Qd7 {[%clk 0:00:48]} 24. Rh3 {[%clk 0:00:27.4]} 24... Rg4 {[%clk
0:00:43.3]} 25. Rg3 {[%clk 0:00:26.5]} 25... Rxg3 {[%clk 0:00:42.7]} 26. hxg3
{[%clk 0:00:27.4]} 26... Nd5 {[%clk 0:00:40]} 27. Nxd5 {[%clk 0:00:25.1]} 27...
Qxd5 {[%clk 0:00:40.9]} 28. Be4 {[%clk 0:00:22]} 28... Qxe4 {[%clk 0:00:41]} 29.
Qxe4 {[%clk 0:00:22.4]} 29... Bxe4 {[%clk 0:00:41.5]} 30. Rxe4 {[%clk
0:00:23.3]} 30... Rc1+ {[%clk 0:00:42]} 31. Kh2 {[%clk 0:00:22.7]} 31... Rc2
{[%clk 0:00:42.9]} 32. Ra4 {[%clk 0:00:21.2]} 32... a5 {[%clk 0:00:36.5]} 33. b4
{[%clk 0:00:20.6]} 33... Rc4 {[%clk 0:00:36.4]} 34. Kg1 {[%clk 0:00:17.9]} 34...
Kf8 {[%clk 0:00:35.6]} 35. Kf1 {[%clk 0:00:18.8]} 35... Ke7 {[%clk 0:00:35.4]}
36. Ke2 {[%clk 0:00:19.3]} 36... Kd6 {[%clk 0:00:35.7]} 37. Kd3 {[%clk
0:00:19.5]} 37... Kd5 {[%clk 0:00:34.7]} 0-1

[Event "Early-Titled-Tuesday-Blitz-September-05-2023"]
[Site "Chess.com"]
[Date "2023.09.05"]
[Round "8"]
[White "Mikedannnn"]
[Black "andrzej"]
[Result "1-0"]
[WhiteElo "2620"]
[BlackElo "2402"]
[TimeControl "180+1"]
[EndTime "9:26:14 PDT"]
[Termination "Mikedannnn won by checkmate"]

1. e4 {[%clk 0:02:40.9]} 1... e5 {[%clk 0:02:59.8]} 2. Nf3 {[%clk 0:02:38.6]}
2... Nf6 {[%clk 0:03:00.3]} 3. Nxe5 {[%clk 0:02:37.4]} 3... d6 {[%clk
0:03:00.6]} 4. Nf3 {[%clk 0:02:37.7]} 4... Nxe4 {[%clk 0:03:01.1]} 5. d4 {[%clk
0:02:37.9]} 5... d5 {[%clk 0:03:01]} 6. Bd3 {[%clk 0:02:36.9]} 6... Be7 {[%clk
0:03:01.5]} 7. O-O {[%clk 0:02:35.4]} 7... Bf5 {[%clk 0:03:02.1]} 8. c4 {[%clk
0:02:34.7]} 8... dxc4 {[%clk 0:02:58.1]} 9. Bxc4 {[%clk 0:02:33]} 9... O-O
{[%clk 0:02:58.4]} 10. Nc3 {[%clk 0:02:32.6]} 10... Nc6 {[%clk 0:02:55.2]} 11.
Re1 {[%clk 0:02:20.2]} 11... Nd6 {[%clk 0:02:55.3]} 12. Bb3 {[%clk 0:02:09.8]}
12... Na5 {[%clk 0:02:37.7]} 13. Ba4 {[%clk 0:02:00.5]} 13... c6 {[%clk
0:02:21.2]} 14. Ne5 {[%clk 0:01:55.7]} 14... Bf6 {[%clk 0:02:04.6]} 15. Bf4
{[%clk 0:01:49.7]} 15... Nac4 {[%clk 0:01:56.2]} 16. Qe2 {[%clk 0:01:49]} 16...
Nb6 {[%clk 0:01:48.3]} 17. Bb3 {[%clk 0:01:46.7]} 17... a5 {[%clk 0:01:43.3]}
18. a3 {[%clk 0:01:38.2]} 18... a4 {[%clk 0:01:42.9]} 19. Ba2 {[%clk 0:01:37.8]}
19... Re8 {[%clk 0:01:32.8]} 20. Qf3 {[%clk 0:01:17.2]} 20... Be6 {[%clk
0:01:25.9]} 21. Bb1 {[%clk 0:01:00.5]} 21... Nf5 {[%clk 0:01:24.8]} 22. Rd1
{[%clk 0:00:52.4]} 22... Nxd4 {[%clk 0:01:17.4]} 23. Qd3 {[%clk 0:00:50]} 23...
Nf5 {[%clk 0:01:05.6]} 24. Qh3 {[%clk 0:00:48.8]} 24... Qc8 {[%clk 0:01:02.4]}
25. Ne4 {[%clk 0:00:45.8]} 25... Be7 {[%clk 0:00:55.3]} 26. g4 {[%clk
0:00:38.4]} 26... Nh4 {[%clk 0:00:29.5]} 27. Nd6 {[%clk 0:00:33.5]} 27... Bxd6
{[%clk 0:00:29.6]} 28. Qxh4 {[%clk 0:00:30]} 28... Bxe5 {[%clk 0:00:18.9]} 29.
Qxh7+ {[%clk 0:00:27.6]} 29... Kf8 {[%clk 0:00:19.5]} 30. Bxe5 {[%clk
0:00:28.3]} 30... Bd5 {[%clk 0:00:08.8]} 31. Bd6+ {[%clk 0:00:27.2]} 31... Re7
{[%clk 0:00:08.4]} 32. Qh8# {[%clk 0:00:27.9]} 1-0

[Event "Early-Titled-Tuesday-Blitz-September-05-2023"]
[Site "Chess.com"]
[Date "2023.09.05"]
[Round "8"]
[White "ChessQueen"]
[Black "shimastream"]
[Result "0-1"]
[WhiteElo "2770"]
[BlackElo "2969"]
[TimeControl "180+1"]
[EndTime "9:26:16 PDT"]
[Termination "shimastream won by resignation"]

1. e4 {[%clk 0:03:00.9]} 1... e5 {[%clk 0:03:00.1]} 2. Nf3 {[%clk 0:03:00.4]}
2... Qe7 {[%clk 0:03:00.2]} 3. b3 {[%clk 0:02:55.2]} 3... Nf6 {[%clk 0:02:57.5]}
4. Ba3 {[%clk 0:02:52.6]} 4... d6 {[%clk 0:02:57.4]} 5. Nc3 {[%clk 0:02:52.1]}
5... Bg4 {[%clk 0:02:50.8]} 6. Be2 {[%clk 0:02:48.4]} 6... c5 {[%clk 0:02:37.8]}
7. Bb2 {[%clk 0:02:40.1]} 7... Qd8 {[%clk 0:02:29.1]} 8. O-O {[%clk 0:02:36.1]}
8... Be7 {[%clk 0:02:29]} 9. d3 {[%clk 0:02:34.5]} 9... Nc6 {[%clk 0:02:16.6]}
10. Nd2 {[%clk 0:02:33.8]} 10... Be6 {[%clk 0:02:17.3]} 11. f4 {[%clk
0:02:22.7]} 11... exf4 {[%clk 0:02:17.3]} 12. Rxf4 {[%clk 0:02:22]} 12... Nd4
{[%clk 0:02:14.7]} 13. Nc4 {[%clk 0:02:16.9]} 13... O-O {[%clk 0:02:12.5]} 14.
Ne3 {[%clk 0:02:15.6]} 14... Re8 {[%clk 0:01:45.1]} 15. Qd2 {[%clk 0:02:14.3]}
15... Nd7 {[%clk 0:01:40.9]} 16. Rf2 {[%clk 0:01:54.3]} 16... Bg5 {[%clk
0:01:39.5]} 17. Ncd1 {[%clk 0:01:54.5]} 17... d5 {[%clk 0:01:28.1]} 18. Qe1
{[%clk 0:01:22]} 18... dxe4 {[%clk 0:01:24.9]} 19. dxe4 {[%clk 0:01:22.9]} 19...
Nf6 {[%clk 0:01:22.9]} 20. Bd3 {[%clk 0:01:20.9]} 20... Bd7 {[%clk 0:01:15.6]}
21. Nc3 {[%clk 0:01:09.5]} 21... Bc6 {[%clk 0:01:14.9]} 22. Nf1 {[%clk
0:00:39.2]} 22... Ng4 {[%clk 0:01:10.1]} 23. Rd1 {[%clk 0:00:33.4]} 23... Nxf2
{[%clk 0:01:06.7]} 24. Qxf2 {[%clk 0:00:34.3]} 24... Qf6 {[%clk 0:01:05.7]} 25.
Qg3 {[%clk 0:00:27.1]} 25... Bf4 {[%clk 0:01:00.9]} 26. Qg4 {[%clk 0:00:26.2]}
26... Qg5 {[%clk 0:00:56.5]} 27. Qxg5 {[%clk 0:00:25]} 27... Bxg5 {[%clk
0:00:57.4]} 28. a4 {[%clk 0:00:19.7]} 28... Rad8 {[%clk 0:00:56.7]} 29. Re1
{[%clk 0:00:15.7]} 29... Nxb3 {[%clk 0:00:53.1]} 30. Bb5 {[%clk 0:00:13]} 30...
Nd4 {[%clk 0:00:51.7]} 31. Bd3 {[%clk 0:00:11.1]} 31... c4 {[%clk 0:00:49.5]}
32. Bxc4 {[%clk 0:00:11.3]} 32... Nxc2 {[%clk 0:00:50.2]} 33. Re2 {[%clk
0:00:11.9]} 33... Nd4 {[%clk 0:00:44.4]} 34. Re1 {[%clk 0:00:12.3]} 34... Bf6
{[%clk 0:00:39.4]} 35. Rb1 {[%clk 0:00:10.5]} 35... Bxe4 {[%clk 0:00:34.4]} 36.
Nxe4 {[%clk 0:00:10.8]} 36... Rxe4 {[%clk 0:00:35.3]} 37. Ng3 {[%clk 0:00:11.2]}
37... Re7 {[%clk 0:00:30.5]} 38. Rd1 {[%clk 0:00:11.3]} 38... Nf3+ {[%clk
0:00:29.2]} 39. gxf3 {[%clk 0:00:11]} 39... Rxd1+ {[%clk 0:00:29]} 0-1

[Event "Early-Titled-Tuesday-Blitz-September-05-2023"]
[Site "Chess.com"]
[Date "2023.09.05"]
[Round "8"]
[White "kushbhagat2009"]
[Black "Manukyan_Artak"]
[Result "1-0"]
[WhiteElo "2633"]
[BlackElo "2460"]
[TimeControl "180+1"]
[EndTime "9:26:17 PDT"]
[Termination "kushbhagat2009 won by resignation"]

1. d4 {[%clk 0:03:00.9]} 1... Nf6 {[%clk 0:02:55.8]} 2. Bf4 {[%clk 0:03:01.1]}
2... c5 {[%clk 0:02:55.1]} 3. e3 {[%clk 0:03:01.4]} 3... Qb6 {[%clk 0:02:54.6]}
4. Nc3 {[%clk 0:02:57.3]} 4... d5 {[%clk 0:02:52.7]} 5. Nf3 {[%clk 0:02:53.3]}
5... Bg4 {[%clk 0:02:50.3]} 6. Rb1 {[%clk 0:02:47.5]} 6... e6 {[%clk 0:02:46.2]}
7. Be2 {[%clk 0:02:45.9]} 7... c4 {[%clk 0:02:39]} 8. O-O {[%clk 0:02:45.1]}
8... Bb4 {[%clk 0:02:30.1]} 9. Ne5 {[%clk 0:02:38.4]} 9... Bxe2 {[%clk
0:02:26.3]} 10. Nxe2 {[%clk 0:02:38]} 10... Nbd7 {[%clk 0:02:23.2]} 11. c3
{[%clk 0:02:35.7]} 11... Bd6 {[%clk 0:02:19.3]} 12. b3 {[%clk 0:02:35.1]} 12...
cxb3 {[%clk 0:02:17.7]} 13. Rxb3 {[%clk 0:02:30.9]} 13... Qc7 {[%clk 0:02:17.6]}
14. Nxd7 {[%clk 0:02:28.6]} 14... Kxd7 {[%clk 0:02:07.8]} 15. Bxd6 {[%clk
0:02:23.8]} 15... Kxd6 {[%clk 0:02:07.9]} 16. f3 {[%clk 0:02:06.2]} 16... Rhc8
{[%clk 0:01:53.4]} 17. e4 {[%clk 0:02:01.1]} 17... Ke7 {[%clk 0:01:53.6]} 18. e5
{[%clk 0:01:57.5]} 18... Nd7 {[%clk 0:01:50.2]} 19. f4 {[%clk 0:01:55.4]} 19...
g6 {[%clk 0:01:49.7]} 20. Qe1 {[%clk 0:01:46.1]} 20... Kf8 {[%clk 0:01:49.3]}
21. Qh4 {[%clk 0:01:43.8]} 21... Kg7 {[%clk 0:01:43.8]} 22. g4 {[%clk
0:01:41.5]} 22... Qc4 {[%clk 0:01:33.8]} 23. Ng3 {[%clk 0:01:37.1]} 23... Rc7
{[%clk 0:01:24]} 24. f5 {[%clk 0:01:35.8]} 24... exf5 {[%clk 0:01:13.3]} 25.
gxf5 {[%clk 0:01:32.2]} 25... Rf8 {[%clk 0:01:13.7]} 26. Rf2 {[%clk 0:00:52.7]}
26... Nxe5 {[%clk 0:01:05.6]} 27. f6+ {[%clk 0:00:48]} 27... Kh8 {[%clk
0:00:53.3]} 28. Qh6 {[%clk 0:00:48.9]} 28... Rg8 {[%clk 0:00:48.1]} 29. dxe5
{[%clk 0:00:49.4]} 29... d4 {[%clk 0:00:37.8]} 30. Rf4 {[%clk 0:00:43.6]} 30...
g5 {[%clk 0:00:29.5]} 31. Rxd4 {[%clk 0:00:43.8]} 31... Qc5 {[%clk 0:00:21.7]}
32. Nf5 {[%clk 0:00:36.4]} 32... Qxe5 {[%clk 0:00:12.4]} 33. Qg7+ {[%clk
0:00:34.5]} 33... Rxg7 {[%clk 0:00:10.3]} 34. fxg7+ {[%clk 0:00:35.4]} 34...
Qxg7 {[%clk 0:00:07]} 35. Nxg7 {[%clk 0:00:34.6]} 35... Kxg7 {[%clk 0:00:07.9]}
36. Rd5 {[%clk 0:00:32.3]} 1-0

[Event "Early-Titled-Tuesday-Blitz-September-05-2023"]
[Site "Chess.com"]
[Date "2023.09.05"]
[Round "8"]
[White "amanjazu"]
[Black "HeinichessPY"]
[Result "1-0"]
[WhiteElo "2361"]
[BlackElo "2211"]
[TimeControl "180+1"]
[EndTime "9:26:17 PDT"]
[Termination "amanjazu won by checkmate"]

1. f4 {[%clk 0:03:00.9]} 1... Nf6 {[%clk 0:02:58.6]} 2. Nf3 {[%clk 0:03:00.9]}
2... g6 {[%clk 0:02:54.4]} 3. g3 {[%clk 0:03:01.8]} 3... Bg7 {[%clk 0:02:47.7]}
4. Bg2 {[%clk 0:03:02.7]} 4... O-O {[%clk 0:02:43.6]} 5. O-O {[%clk 0:03:03.6]}
5... d6 {[%clk 0:02:43.9]} 6. d3 {[%clk 0:03:04.5]} 6... c5 {[%clk 0:02:41]} 7.
Nc3 {[%clk 0:03:05.4]} 7... Nc6 {[%clk 0:02:40.6]} 8. e4 {[%clk 0:03:05.6]} 8...
Bg4 {[%clk 0:02:40]} 9. h3 {[%clk 0:03:05.6]} 9... Bd7 {[%clk 0:02:35.2]} 10. g4
{[%clk 0:03:04.5]} 10... Nd4 {[%clk 0:02:34.4]} 11. f5 {[%clk 0:03:04.9]} 11...
Ne8 {[%clk 0:02:17.4]} 12. Nxd4 {[%clk 0:02:55.9]} 12... cxd4 {[%clk 0:02:11.5]}
13. Ne2 {[%clk 0:02:49.7]} 13... Rc8 {[%clk 0:02:11.8]} 14. Bd2 {[%clk
0:02:48.1]} 14... Qb6 {[%clk 0:02:08.5]} 15. b3 {[%clk 0:02:48.3]} 15... e6
{[%clk 0:02:02.9]} 16. fxe6 {[%clk 0:02:28.1]} 16... Bxe6 {[%clk 0:01:53.8]} 17.
a4 {[%clk 0:02:14]} 17... Nf6 {[%clk 0:01:50]} 18. Rc1 {[%clk 0:02:10.2]} 18...
Nd7 {[%clk 0:01:48.9]} 19. Bg5 {[%clk 0:01:57.9]} 19... f6 {[%clk 0:01:39.7]}
20. Bh4 {[%clk 0:01:47.1]} 20... Ne5 {[%clk 0:01:34.9]} 21. Bf2 {[%clk
0:01:43.7]} 21... h5 {[%clk 0:01:33.8]} 22. Nxd4 {[%clk 0:01:40.1]} 22... Bf7
{[%clk 0:01:22.3]} 23. gxh5 {[%clk 0:01:29.6]} 23... Qd8 {[%clk 0:01:14.6]} 24.
hxg6 {[%clk 0:01:24.2]} 24... Nxg6 {[%clk 0:01:14.1]} 25. Nf5 {[%clk 0:01:24]}
25... Nf4 {[%clk 0:01:07.5]} 26. Qg4 {[%clk 0:01:19.4]} 26... Ng6 {[%clk
0:00:51.4]} 27. h4 {[%clk 0:01:13.6]} 27... Be6 {[%clk 0:00:43.9]} 28. Qxg6
{[%clk 0:01:13]} 28... Bxf5 {[%clk 0:00:43.3]} 29. exf5 {[%clk 0:01:13.4]} 29...
d5 {[%clk 0:00:36.8]} 30. c4 {[%clk 0:01:11.3]} 30... dxc4 {[%clk 0:00:34]} 31.
dxc4 {[%clk 0:01:11.4]} 31... Qd2 {[%clk 0:00:31.1]} 32. Rcd1 {[%clk 0:00:44.9]}
32... Qf4 {[%clk 0:00:24.2]} 33. Bc5 {[%clk 0:00:19.5]} 33... Qxh4 {[%clk
0:00:21.6]} 34. Bxf8 {[%clk 0:00:19.4]} 34... Re8 {[%clk 0:00:22.5]} 35. Qxg7#
{[%clk 0:00:15.5]} 1-0

[Event "Early-Titled-Tuesday-Blitz-September-05-2023"]
[Site "Chess.com"]
[Date "2023.09.05"]
[Round "8"]
[White "EvgenyBurmakin"]
[Black "Roedor"]
[Result "0-1"]
[WhiteElo "2281"]
[BlackElo "2452"]
[TimeControl "180+1"]
[EndTime "9:26:18 PDT"]
[Termination "Roedor won by resignation"]

1. e4 {[%clk 0:03:00.9]} 1... e5 {[%clk 0:02:57.9]} 2. Nf3 {[%clk 0:03:00.2]}
2... Nc6 {[%clk 0:02:55.9]} 3. Bb5 {[%clk 0:03:00.6]} 3... Nf6 {[%clk
0:02:55.5]} 4. O-O {[%clk 0:02:59.7]} 4... Nxe4 {[%clk 0:02:55.4]} 5. d4 {[%clk
0:02:59.7]} 5... Nd6 {[%clk 0:02:55.5]} 6. dxe5 {[%clk 0:02:52.5]} 6... Nxb5
{[%clk 0:02:54.2]} 7. a4 {[%clk 0:02:53]} 7... Nbd4 {[%clk 0:02:54.7]} 8. Nxd4
{[%clk 0:02:51.6]} 8... d6 {[%clk 0:02:55.2]} 9. Nxc6 {[%clk 0:02:44]} 9... bxc6
{[%clk 0:02:56.1]} 10. Re1 {[%clk 0:02:38.8]} 10... Be7 {[%clk 0:02:54.5]} 11.
Nc3 {[%clk 0:02:28.2]} 11... O-O {[%clk 0:02:53.4]} 12. Bf4 {[%clk 0:02:28.2]}
12... Rb8 {[%clk 0:02:50]} 13. exd6 {[%clk 0:02:15.4]} 13... Bxd6 {[%clk
0:02:46.9]} 14. Bxd6 {[%clk 0:01:50.2]} 14... cxd6 {[%clk 0:02:47.8]} 15. b3
{[%clk 0:01:49.4]} 15... Bf5 {[%clk 0:02:46]} 16. Ne4 {[%clk 0:01:44.5]} 16...
Bxe4 {[%clk 0:02:43.2]} 17. Rxe4 {[%clk 0:01:45.4]} 17... d5 {[%clk 0:02:43.9]}
18. Rd4 {[%clk 0:01:39.6]} 18... Qf6 {[%clk 0:02:42]} 19. c4 {[%clk 0:01:35.7]}
19... Rxb3 {[%clk 0:02:22.5]} 20. cxd5 {[%clk 0:01:34.2]} 20... cxd5 {[%clk
0:02:14.2]} 21. Ra2 {[%clk 0:01:25.8]} 21... Rfb8 {[%clk 0:02:09.7]} 22. Ra1
{[%clk 0:01:18.1]} 22... Rb2 {[%clk 0:02:00.7]} 23. f3 {[%clk 0:01:00.4]} 23...
Qg5 {[%clk 0:01:44.5]} 24. Rg4 {[%clk 0:00:57]} 24... Qe3+ {[%clk 0:01:44.3]}
25. Kh1 {[%clk 0:00:56.3]} 25... Rd2 {[%clk 0:01:37]} 26. Qg1 {[%clk 0:00:46.1]}
26... Qxg1+ {[%clk 0:01:30.2]} 27. Rxg1 {[%clk 0:00:45.6]} 27... h5 {[%clk
0:01:22.8]} 28. Rg5 {[%clk 0:00:40.7]} 28... h4 {[%clk 0:01:14.4]} 29. h3 {[%clk
0:00:36.5]} 29... Rb4 {[%clk 0:01:12.7]} 30. a5 {[%clk 0:00:31.1]} 30... f6
{[%clk 0:01:00.1]} 31. Rg4 {[%clk 0:00:18.8]} 31... Rxg4 {[%clk 0:00:59.1]} 32.
hxg4 {[%clk 0:00:19.2]} 32... Ra2 {[%clk 0:00:57.2]} 33. Rd1 {[%clk 0:00:12.5]}
33... Rxa5 {[%clk 0:00:57]} 34. Rd4 {[%clk 0:00:12.4]} 34... Kf7 {[%clk
0:00:54.8]} 35. Kh2 {[%clk 0:00:11.8]} 35... Ke6 {[%clk 0:00:54.1]} 36. Kh3
{[%clk 0:00:11.5]} 36... g5 {[%clk 0:00:54]} 37. f4 {[%clk 0:00:10.9]} 37... Rc5
{[%clk 0:00:51.5]} 38. g3 {[%clk 0:00:08.7]} 38... Rc3 {[%clk 0:00:48.8]} 39.
Ra4 {[%clk 0:00:08.4]} 39... Rxg3+ {[%clk 0:00:48.8]} 40. Kh2 {[%clk 0:00:08.7]}
40... Rxg4 {[%clk 0:00:46.5]} 41. Rxa7 {[%clk 0:00:04.5]} 41... Rxf4 {[%clk
0:00:45.1]} 0-1

[Event "Early-Titled-Tuesday-Blitz-September-05-2023"]
[Site "Chess.com"]
[Date "2023.09.05"]
[Round "8"]
[White "realburq"]
[Black "NowInChess"]
[Result "0-1"]
[WhiteElo "2370"]
[BlackElo "2278"]
[TimeControl "180+1"]
[EndTime "9:26:20 PDT"]
[Termination "NowInChess won by checkmate"]

1. Nf3 {[%clk 0:03:00.9]} 1... Nf6 {[%clk 0:02:59.7]} 2. b3 {[%clk 0:03:01.8]}
2... g6 {[%clk 0:02:59.8]} 3. Bb2 {[%clk 0:03:02.1]} 3... Bg7 {[%clk 0:03:00.4]}
4. g3 {[%clk 0:03:02.6]} 4... O-O {[%clk 0:03:00.8]} 5. Bg2 {[%clk 0:03:03.3]}
5... d5 {[%clk 0:03:01.1]} 6. O-O {[%clk 0:03:03.7]} 6... c5 {[%clk 0:03:00.2]}
7. c4 {[%clk 0:02:58.2]} 7... Nc6 {[%clk 0:02:51.8]} 8. cxd5 {[%clk 0:02:49.7]}
8... Nxd5 {[%clk 0:02:52.7]} 9. Bxg7 {[%clk 0:02:49.4]} 9... Kxg7 {[%clk
0:02:53.6]} 10. Nc3 {[%clk 0:02:42.8]} 10... Nxc3 {[%clk 0:02:23.8]} 11. dxc3
{[%clk 0:02:39.8]} 11... Qc7 {[%clk 0:02:10.1]} 12. Qc1 {[%clk 0:02:28.3]} 12...
b6 {[%clk 0:02:02.7]} 13. Qe3 {[%clk 0:02:15.1]} 13... Bb7 {[%clk 0:01:50.9]}
14. Rfd1 {[%clk 0:02:09.2]} 14... Rad8 {[%clk 0:01:49.2]} 15. h4 {[%clk
0:02:08.1]} 15... h6 {[%clk 0:01:34.3]} 16. h5 {[%clk 0:01:52.2]} 16... g5
{[%clk 0:01:30.2]} 17. c4 {[%clk 0:01:45.3]} 17... Qc8 {[%clk 0:01:17.5]} 18.
Qc3+ {[%clk 0:01:44.7]} 18... f6 {[%clk 0:01:09.7]} 19. Qc2 {[%clk 0:01:40.4]}
19... f5 {[%clk 0:01:02]} 20. Qc3+ {[%clk 0:01:34.5]} 20... Kf7 {[%clk
0:00:20.6]} 21. e3 {[%clk 0:01:33.5]} 21... Qe6 {[%clk 0:00:18.6]} 22. Nxg5+
{[%clk 0:01:23.2]} 22... hxg5 {[%clk 0:00:16.9]} 23. Bd5 {[%clk 0:01:22.2]}
23... Rxd5 {[%clk 0:00:13.8]} 24. cxd5 {[%clk 0:01:22.7]} 24... Qe5 {[%clk
0:00:13.1]} 25. Qc4 {[%clk 0:00:24.7]} 25... Na5 {[%clk 0:00:11.9]} 26. Qd3
{[%clk 0:00:24.8]} 26... Rd8 {[%clk 0:00:10.8]} 27. e4 {[%clk 0:00:18.8]} 27...
Qxe4 {[%clk 0:00:09.1]} 28. Qxe4 {[%clk 0:00:18.5]} 28... fxe4 {[%clk 0:00:09]}
29. Kf1 {[%clk 0:00:16.3]} 29... Bxd5 {[%clk 0:00:08.5]} 30. Ke2 {[%clk
0:00:16.6]} 30... c4 {[%clk 0:00:07.6]} 31. bxc4 {[%clk 0:00:14.7]} 31... Bxc4+
{[%clk 0:00:07.8]} 32. Ke3 {[%clk 0:00:14.7]} 32... Bd3 {[%clk 0:00:07.2]} 33.
h6 {[%clk 0:00:14.5]} 33... Nc4# {[%clk 0:00:06.8]} 0-1

[Event "Early-Titled-Tuesday-Blitz-September-05-2023"]
[Site "Chess.com"]
[Date "2023.09.05"]
[Round "8"]
[White "Evgeny81"]
[Black "banane_verte"]
[Result "1-0"]
[WhiteElo "2752"]
[BlackElo "2599"]
[TimeControl "180+1"]
[EndTime "9:26:21 PDT"]
[Termination "Evgeny81 won by resignation"]

1. e4 {[%clk 0:02:43.1]} 1... e6 {[%clk 0:03:00.1]} 2. d4 {[%clk 0:02:40.7]}
2... d5 {[%clk 0:02:59.4]} 3. Nc3 {[%clk 0:02:38.2]} 3... Nf6 {[%clk 0:02:59.3]}
4. Bg5 {[%clk 0:02:37.2]} 4... dxe4 {[%clk 0:02:59.1]} 5. Nxe4 {[%clk
0:02:35.8]} 5... Be7 {[%clk 0:02:59.1]} 6. Bxf6 {[%clk 0:02:36.1]} 6... gxf6
{[%clk 0:02:58.2]} 7. Nf3 {[%clk 0:02:35.3]} 7... f5 {[%clk 0:02:57.4]} 8. Ned2
{[%clk 0:02:32.6]} 8... b6 {[%clk 0:02:42.8]} 9. Bb5+ {[%clk 0:02:31.6]} 9... c6
{[%clk 0:02:37.6]} 10. Bd3 {[%clk 0:02:31.4]} 10... Bb7 {[%clk 0:02:36.8]} 11.
Qe2 {[%clk 0:02:31.4]} 11... Nd7 {[%clk 0:02:34.8]} 12. O-O-O {[%clk 0:02:30.1]}
12... Qc7 {[%clk 0:02:34.4]} 13. Nc4 {[%clk 0:02:22.9]} 13... O-O-O {[%clk
0:02:28.4]} 14. Kb1 {[%clk 0:02:16.5]} 14... c5 {[%clk 0:02:27.1]} 15. Bxf5
{[%clk 0:02:12.5]} 15... cxd4 {[%clk 0:02:14.4]} 16. Bd3 {[%clk 0:02:03.8]}
16... Nc5 {[%clk 0:02:05.6]} 17. Rhe1 {[%clk 0:01:54.5]} 17... Bf6 {[%clk
0:01:54.6]} 18. Nce5 {[%clk 0:01:43.2]} 18... Nxd3 {[%clk 0:01:44.8]} 19. cxd3
{[%clk 0:01:40.4]} 19... Kb8 {[%clk 0:01:41.6]} 20. Rc1 {[%clk 0:01:39.8]} 20...
Qe7 {[%clk 0:01:36.7]} 21. Nc6+ {[%clk 0:01:38.8]} 21... Bxc6 {[%clk 0:01:36.4]}
22. Rxc6 {[%clk 0:01:39.7]} 22... Rc8 {[%clk 0:01:29.4]} 23. Ne5 {[%clk
0:01:33.4]} 23... Qb7 {[%clk 0:01:08.2]} 24. Rec1 {[%clk 0:01:30.1]} 24... Bxe5
{[%clk 0:00:38.4]} 25. Qxe5+ {[%clk 0:01:29.3]} 25... Ka8 {[%clk 0:00:39]} 26.
Rxc8+ {[%clk 0:01:27.5]} 26... Rxc8 {[%clk 0:00:39.9]} 27. Rxc8+ {[%clk
0:01:27.4]} 27... Qxc8 {[%clk 0:00:40.8]} 28. Qxd4 {[%clk 0:01:26.9]} 28... Qc6
{[%clk 0:00:33.6]} 29. Qe4 {[%clk 0:01:26.7]} 29... Kb7 {[%clk 0:00:28.7]} 30.
Qxc6+ {[%clk 0:01:17.2]} 30... Kxc6 {[%clk 0:00:28.4]} 31. Kc2 {[%clk
0:01:18.1]} 31... Kd5 {[%clk 0:00:26.8]} 32. Kc3 {[%clk 0:01:18.5]} 32... e5
{[%clk 0:00:27.2]} 33. f3 {[%clk 0:01:14.9]} 33... h5 {[%clk 0:00:23.5]} 34. g3
{[%clk 0:01:01.7]} 34... f5 {[%clk 0:00:14]} 35. Kd2 {[%clk 0:01:01.5]} 35...
Kd4 {[%clk 0:00:13.9]} 36. Ke2 {[%clk 0:01:01.8]} 36... a5 {[%clk 0:00:10]} 37.
a4 {[%clk 0:00:51.5]} 37... Kc5 {[%clk 0:00:05.7]} 38. h3 {[%clk 0:00:51.4]}
38... Kd6 {[%clk 0:00:02.5]} 39. g4 {[%clk 0:00:48]} 39... fxg4 {[%clk
0:00:02.1]} 40. fxg4 {[%clk 0:00:48]} 40... hxg4 {[%clk 0:00:02.3]} 41. hxg4
{[%clk 0:00:48.9]} 1-0